[Event "The American Cup | Group A 2023"]
[Site "Chess.com"]
[Date "2023.03.20"]
[Round "6"]
[White "Dominguez Perez, Leinier"]
[Black "Nakamura, Hikaru"]
[Result "0-1"]
[WhiteElo "2743"]
[BlackElo "2768"]
[ECO "B32"]
[EventDate "2023.??.??"]
[Annotator "rafael"]
[PlyCount "98"]
[Beauty "7010195873296"]
[EventType "schev"]
[EventRounds "3"]
[TimeControl "5400+30"]

1.e4 c5 2.Nf3 Nc6 3.d4 cxd4 4.Nxd4 e5 {A risky variation that shows that Nakamura was willing to play for the win with Black. This choice certainly surprised his opponent, who was probably expecting the Berlin.} 5.Nb5 d6 6.N1c3 ( 6.c4 {is a more positional choice.} ) 6...a6 7.Na3 Be6 ( 7...Be7 {In the only Nakamura game I found in this line, this is the move played.} 8.Nc4 b5 9.Ne3 {Neeloptal-Nakamura, Isle of Man 2017.} ) 8.Nc4 Rb8 {This mysterious move is a specialty of GM Maghsoodloo. I won't pretend to understand the idea. Let's say it's a kind of super protection to play b7-b5 at some point.} 9.Nd5 Bxd5 10.exd5 Nce7 11.g3 ( 11.g4 {During the interview, Nakamura commented that this is the computer's suggestion and that it's the best move. I agree with him that it's impossible for a human to play like this without knowing the move beforehand. In my case, I wouldn't play this even knowing it's the computer's recommendation $1 But a braver player tried it ... and lost. Garrido Outon-Lobanov, Vrnjacka Banja 2023.} ) 11...b5 12.Ne3 g6 13.a4 Nf6 ( 13...Bh6 $1 {[%c_effect h6;square;h6;type;GreatFind;persistent;true] is more accurate.} ) 14.axb5 ( 14.c4 $1 {[%c_effect c4;square;c4;type;GreatFind;persistent;true] It seems this is the best move for White to fight for an advantage. The bishop is still useful on f1, pointing to the queenside.} ) 14...axb5 15.Bg2 Bh6 16.O-O O-O 17.Qd3 Nd7 {With the knight going to c5 and the pawns on the kingside ready to roll, Black has a fine position.} 18.Bd2 Nc5 ( 18...f5 {The immediate advance is also possible.} ) 19.Qe2 Qc7 ( 19...b4 $1 {[%c_effect b4;square;b4;type;GreatFind;persistent;true] This move secures the c5-square for the knight.} ) 20.b4 {A natural move, but placing the bishop on this square is also interesting.} ( 20.Bb4 $5 {[%c_effect b4;square;b4;type;Interesting;persistent;true] White's idea is to play 21.Ra5 and attack the b5-pawn or double the rooks on the a-file.} ) 20...Nd7 21.Ra5 Bxe3 $1 {[%c_effect e3;square;e3;type;GreatFind;persistent;true] A very difficult move to make; after all, exchanging this dark-squared bishop is a pain in the chest. Now we have a nice fight between a pair of bishops and a pair of knights. The capture is necessary for the black knights to start jumping.} 22.Bxe3 Nf5 {This is the point.} 23.Ra7 ( 23.Rxb5 {Nakamura mentioned that he expected this move. I think he has more compensation than he believed after} 23...Nxe3 24.fxe3 Nb6 {If Black manages to play f5-e4, the bishop is shut out from the game and White's pawns are weak.} ) 23...Rb7 24.Rxb7 Qxb7 25.Bd2 Ra8 26.Qd3 Ra2 27.Rd1 Nf6 28.Bg5 Kg7 29.Bh3 {Both players demonstrate their high class. The position remains balanced.} 29...Nd4 $1 {[%c_effect d4;square;d4;type;GreatFind;persistent;true] Nakamura takes his knight on a strange journey.} ( 29...Ne7 {is worse, although the computer is not afraid to dance with the king after} 30.Bxf6+ Kxf6 31.f4 Qa7+ 32.Kh1 exf4 $1 {[%c_effect f4;square;f4;type;GreatFind;persistent;true]} 33.Qc3+ Kg5 ) 30.c3 Nc2 $1 {[%c_effect c2;square;c2;type;GreatFind;persistent;true] The knight appears to be in danger, but it prepares to go to c4. Another route is also possible, as we will see shortly.} 31.Qf3 ( 31.Rd2 {White's best option is to repeat moves with this move, but the position is difficult to assess, and perhaps Dominguez Perez was playing to win.} 31...Ra1+ 32.Rd1 Ra2 ( 32...Rxd1+ {is also possible.} 33.Qxd1 Na3 34.Qc1 $1 {[%c_effect c1;square;c1;type;GreatFind;persistent;true]} 34...Nc4 35.Bh6+ Kg8 36.Qg5 Qe7 {with an equal position.} ) 33.Rd2 ) 31...Ng8 $1 {[%c_effect g8;square;g8;type;GreatFind;persistent;true] Remember this move.} 32.Bf1 Ra3 $5 {[%c_effect a3;square;a3;type;Interesting;persistent;true] Instead of taking the knight to c4, Nakamura decides to create the tactical threat of capturing on b4. His pieces are clumsy on the queenside, but his calculation skill is so great that everything works.} ( 32...Na3 ) 33.Bc1 ( 33.Qd3 {leads to an equal position.} 33...Nxb4 34.Qb1 Na6 35.Qb2 Ra5 36.Bd8 $1 {[%c_effect d8;square;d8;type;GreatFind;persistent;true] This is the detail: the b5-pawn falls.} 36...Ra4 37.Qxb5 Qxb5 38.Bxb5 Ra2 {with a likely draw.} ) 33...Rb3 34.Qe4 $6 {[%c_effect e4;square;e4;type;Inaccuracy;persistent;true] White's problems will begin now.} ( 34.Qd3 {There's a nice drawing line here:} 34...Nxb4 35.Qd2 $1 {[%c_effect d2;square;d2;type;GreatFind;persistent;true]} 35...Na6 36.Qc2 Nc5 37.Be3 b4 $1 {[%c_effect b4;square;b4;type;GreatFind;persistent;true]} 38.cxb4 ( 38.Bxc5 $2 {[%c_effect c5;square;c5;type;Mistake;persistent;true]} 38...Rxc3 ) 38...Rxb4 ( 38...Qxb4 $2 {[%c_effect b4;square;b4;type;Mistake;persistent;true]} 39.Bxc5 dxc5 40.d6 ) 39.Bxc5 dxc5 40.Qxc5 Qb6 41.Qxb6 Rxb6 42.d6 Rb8 {The game should end in a draw.} ) 34...Rxc3 35.Bb2 Nf6 36.Qh4 $2 {[%c_effect h4;square;h4;type;Mistake;persistent;true]} ( 36.Qe2 {is better.} ) 36...Rb3 $6 {[%c_effect b3;square;b3;type;Inaccuracy;persistent;true]} ( 36...Rf3 $1 {[%c_effect f3;square;f3;type;GreatFind;persistent;true] leads to a beautiful victory. Black has the tactical theme of sacrificing the rook on f2 or winning the white queen with Rf5-h5.} 37.Be2 ( 37.Rd2 Rf5 $5 {[%c_effect f5;square;f5;type;Interesting;persistent;true]} 38.Rxc2 Rh5 {The queen is trapped.} ) ( 37.Bg2 Rxf2 $1 {[%c_effect f2;square;f2;type;GreatFind;persistent;true]} 38.Kxf2 Qa7+ 39.Ke2 Qa2 {with a winning attack.} ) 37...Rxf2 $1 {[%c_effect f2;square;f2;type;GreatFind;persistent;true]} 38.Kxf2 Qa7+ 39.Kg2 Ne3+ 40.Kf3 Nxd1 41.Bxd1 Qg1 {There's no defense against the attack. That's why they say a queen and knight work so well $1} ) 37.Bc1 Ng8 $1 {[%c_effect g8;square;g8;type;GreatFind;persistent;true] Again the Ng8 move. Black's king is well protected.} 38.Qd8 Qe7 39.Qa5 ( 39.Bg5 Qxd8 40.Bxd8 Kf8 $1 {[%c_effect f8;square;f8;type;GreatFind;persistent;true]} 41.Bxb5 Rxb4 {Black is a pawn up and has excellent winning chances.} ) 39...Nd4 40.Be3 Nf3+ 41.Kg2 Qf6 42.Be2 e4 43.Qxb5 Qb2 $2 {[%c_effect b2;square;b2;type;Mistake;persistent;true]} ( 43...Rxe3 $3 {[%c_effect e3;square;e3;type;Brilliant;persistent;true] This wins nicely after} 44.fxe3 Nh6 $1 {[%c_effect h6;square;h6;type;GreatFind;persistent;true] They say a queen and knight are dangerous; now imagine if there are two knights on the attack $1 No wonder White has no way out. Giving back material brings no relief:} 45.Rf1 Ng4 46.Rxf3 exf3+ 47.Bxf3 Nxe3+ 48.Kf2 Qd4 {with a winning position.} ) 44.Qa6 $2 {[%c_effect a6;square;a6;type;Mistake;persistent;true]} ( 44.Bf4 $1 {[%c_effect f4;square;f4;type;GreatFind;persistent;true] gives excellent saving chances.} 44...Rxb4 ( 44...Nd4 45.Rxd4 $1 {[%c_effect d4;square;d4;type;GreatFind;persistent;true]} 45...Qxd4 46.Bxd6 {and anything can happen.} ) 45.Qa6 Rb6 46.Qc4 ) 44...Nf6 45.h3 h5 $1 {[%c_effect h5;square;h5;type;GreatFind;persistent;true] The pawn goes to h4, helping the attack.} 46.Kf1 Qe5 $1 {[%c_effect e5;square;e5;type;GreatFind;persistent;true]} 47.Kg2 Rxe3 $1 {[%c_effect e3;square;e3;type;GreatFind;persistent;true] A nice finish.} 48.fxe3 h4 49.gxh4 ( 49.Bxf3 Qxg3+ 50.Kf1 exf3 {wins easily.} ) 49...Qh2+ ( 49...Qh2+ 50.Kf1 Qg1# ) 0-1

[Event "Champions Chess Tour Chessable Masters 2023"]
[Site "Chess.com"]
[Date "2023.04.03"]
[Round "1"]
[White "Carlsen, Magnus"]
[Black "Artemiev, Vladislav"]
[Result "0-1"]
[WhiteElo "2852"]
[BlackElo "2701"]
[ECO "A11"]
[EventDate "2023.??.??"]
[Annotator "rafael"]
[PlyCount "110"]
[Beauty "6666191898121"]
[EventType "team-tourn"]
[TimeControl "900+3"]

1.Nf3 Nf6 2.g3 g6 3.Bg2 Bg7 4.O-O O-O 5.c4 c6 6.b3 Ne4 7.d4 d5 8.Bb2 {An opening system that leads to positional play and a technical position that appeals to both players. By the way, Carlsen and Artemiev have a very similar style of play.} 8...a5 {The plan with a5-a4 is typical in these positions. Black has other viable alternatives.} ( 8...Bf5 ) ( 8...Nd7 ) 9.Nc3 ( 9.e3 {was played when Artemiev had the white position. After} 9...a4 10.Nfd2 Nxd2 11.Qxd2 axb3 12.axb3 Rxa1 13.Bxa1 Be6 {The position was roughly equal in Artemiev-Mamedyarov, Airthings Masters 2022.} ) 9...Nxc3 ( 9...Bf5 10.e3 Nxc3 11.Bxc3 Be4 12.Qe2 a4 13.Rfc1 {this was Carlsen-Nepomniachtchi, Stavanger (blitz) 2021.} ) 10.Bxc3 Nd7 11.cxd5 {This is a debatable decision since Black's position is a little freer now.} ( 11.Rc1 {was tried in Inarkiev-Vachier-Lagrave, Germany 2019.} ) 11...cxd5 12.Rc1 Nf6 13.Ne5 Ne4 14.Bb2 Bf5 {Black has no problems. All of his pieces are well developed and the a5-a4 break can bother White.} 15.e3 Re8 {This move isn't bad, but it's a little mysterious. Perhaps the idea is to avoid a knight leap to d7 after the queen goes to b6.} ( 15...Qb6 ) 16.a4 {A good move, preventing a5-a4.} 16...Qb6 17.Ba3 $6 {[%c_effect a3;square;a3;type;Inaccuracy;persistent;true] This is inaccurate.} ( 17.f3 Nd6 18.g4 $1 {[%c_effect g4;square;g4;type;GreatFind;persistent;true]} 18...Be6 19.Nd3 {White has knocked the black pieces out of their good positions and prepares to put the knight on c5. The position is balanced.} ) 17...Rac8 $1 {[%c_effect c8;square;c8;type;GreatFind;persistent;true] Black is not worried about the e7-pawn.} 18.Bxe4 $6 {[%c_effect e4;square;e4;type;Inaccuracy;persistent;true]} ( 18.Rxc8 {It's more precise to exchange rooks first.} 18...Rxc8 19.Bxe4 ( 19.Bxe7 $2 {[%c_effect e7;square;e7;type;Mistake;persistent;true]} 19...Nc3 {The queenside pawns fall.} ) 19...dxe4 $5 {[%c_effect e4;square;e4;type;Interesting;persistent;true]} ( 19...Bxe4 20.Nd7 Qc7 21.Nc5 Bf5 22.g4 Bd7 {with a slight advantage for Black.} ) 20.Nc4 {White is in the game, although I prefer Black.} ) 18...Rxc1 $1 {[%c_effect c1;square;c1;type;GreatFind;persistent;true]} 19.Qxc1 Bxe4 20.f3 ( 20.Nd7 Qd8 $1 {[%c_effect d8;square;d8;type;GreatFind;persistent;true]} ( 20...Qxb3 {is not so good because of} 21.Nc5 ) 21.Nc5 Bf3 {The light-squared bishop is very dangerous.} ) 20...Bf5 21.g4 Rc8 $6 {[%c_effect c8;square;c8;type;Inaccuracy;persistent;true] After this move Carlsen gets good drawing chances in a rook endgame.} ( 21...Bxe5 $1 {[%c_effect e5;square;e5;type;GreatFind;persistent;true] is stronger.} 22.dxe5 ( 22.gxf5 Bd6 23.Bxd6 exd6 24.fxg6 hxg6 25.Qc3 Qd8 {Black is much better since white's pawn structure is very weak.} ) 22...Bd3 23.Rf2 Qxb3 {Black is a pawn up, although with bishops of opposite colors things are never easy.} ) 22.Bc5 Qc7 23.gxf5 Bxe5 24.dxe5 Qxc5 25.Qxc5 Rxc5 26.f6 ( 26.fxg6 {is also enough for a draw.} 26...fxg6 {I like this capture to open the path for the king.} 27.Rb1 $1 {[%c_effect b1;square;b1;type;GreatFind;persistent;true] followed by b4 and White should have no problems to achieve a draw.} ) 26...exf6 27.exf6 Rc6 28.Rd1 ( 28.Kf2 {gives White enough counterplay after} 28...Rxf6 29.Rc1 $1 {[%c_effect c1;square;c1;type;GreatFind;persistent;true]} 29...Rd6 ( 29...Rb6 30.Rc5 Rxb3 31.Rxa5 ) 30.Rc5 b6 31.Rb5 Kg7 32.b4 axb4 33.Rxb4 Kf6 34.Rb5 Ke6 35.a5 bxa5 36.Rxa5 {with excellent drawing chances.} ) 28...Rxf6 29.Rxd5 $6 {[%c_effect d5;square;d5;type;Inaccuracy;persistent;true]} ( 29.Kf2 {is good again:} 29...Rd6 30.Rd4 f5 ( 30...Kf8 31.e4 Ke7 32.b4 ( 32.exd5 $6 {[%c_effect d5;square;d5;type;Inaccuracy;persistent;true]} 32...Rb6 {is dangerous for White.} ) 32...b6 33.exd5 {with a draw.} ) 31.b4 b6 32.e4 $1 {[%c_effect e4;square;e4;type;GreatFind;persistent;true]} 32...fxe4 33.fxe4 Rf6+ 34.Kg3 dxe4 35.Rxe4 {and the draw is near.} ) 29...Rxf3 30.Rxa5 Rxe3 31.Rb5 Re7 {This is much more difficult for White to defend, although the computer still claims a draw. The players were in big time trouble at this point, so it was impossible to play correctly.} 32.Rb6 $2 {[%c_effect b6;square;b6;type;Mistake;persistent;true] This is a bad square for the rook.} ( 32.a5 Kg7 33.b4 f5 34.Rc5 $1 {[%c_effect c5;square;c5;type;GreatFind;persistent;true] White's counterplay is connected with b5-b6-Rc7.} ) 32...Kg7 33.a5 f5 34.b4 Kh6 {Black's position is winning now.} 35.Kf2 Kh5 $1 {[%c_effect h5;square;h5;type;GreatFind;persistent;true]} 36.b5 ( 36.Kg3 g5 ) 36...g5 37.a6 ( 37.Rd6 {gives better practical chances.} ) 37...bxa6 38.bxa6 Re5 $1 {[%c_effect e5;square;e5;type;GreatFind;persistent;true] The classic rule \"place the rook behind the passed pawn\" applies here.} 39.a7 Ra5 40.Rb7 h6 41.Rh7 Kg6 42.Rb7 Ra3 43.Rc7 {The only thing left is to advance the passed pawns. But the adventures are not over.} 43...f4 $2 {[%c_effect f4;square;f4;type;Mistake;persistent;true]} ( 43...g4 $1 {[%c_effect g4;square;g4;type;GreatFind;persistent;true] is the right way.} ) 44.Rb7 $2 {[%c_effect b7;square;b7;type;Mistake;persistent;true] Missing a golden chance.} ( 44.h3 $1 {[%c_effect h3;square;h3;type;GreatFind;persistent;true]} 44...Kh5 ( 44...h5 45.Rc6+ Kf5 46.Rc5+ Ke4 47.Rxg5 Rxa7 48.Rxh5 Ra2+ 49.Kg1 Kf3 50.Rf5 {with a known theoretical draw.} 50...Ra1+ 51.Kh2 Ke3 52.Kg2 ) 45.Rh7 $1 {[%c_effect h7;square;h7;type;GreatFind;persistent;true] The pawns cannot easily advance and the king cannot hide from the checks. White sets a fortress since there's no winning plan.} ) 44...Kh5 45.Rh7 Kg6 ( 45...g4 $1 {[%c_effect g4;square;g4;type;GreatFind;persistent;true] wins easily.} ) 46.Rb7 Kf5 $2 {[%c_effect f5;square;f5;type;Mistake;persistent;true]} 47.Rh7 $2 {[%c_effect h7;square;h7;type;Mistake;persistent;true]} ( 47.h3 $1 {[%c_effect h3;square;h3;type;GreatFind;persistent;true] is a draw again.} ) 47...Ra2+ 48.Kf1 ( 48.Kf3 g4# ) 48...Kg6 49.Rb7 Kh5 50.Rh7 g4 $1 {[%c_effect g4;square;g4;type;GreatFind;persistent;true] Artemiev finally goes the right way.} 51.Rf7 Kg5 52.Kg1 h5 53.Rg7+ Kh4 54.Rf7 Ra1+ 55.Kf2 Kh3 0-1